[Event "MČR juniorů a juniorek v rapid šachu 2023"]
[Site "Czech Republic"]
[Date "2023.09.23"]
[Round "6.27"]
[White "Cinkova, Vicky"]
[Black "Hruby, Filip"]
[Result "0-1"]
[TimeControl "20 min + 5 sec per move"]
[WhiteFideId "23725826"]
[BlackFideId "23721480"]
[WhiteElo "1300"]
[BlackElo "1460"]

1. c4 {[%clk 00:20:01]} {[%emt 00:00:08]} e5 {[%clk 00:20:07]} {[%emt
00:00:03]} 2. b3 {[%clk 00:20:05]} {[%emt 00:00:01]} Nc6 {[%clk 00:19:53]}
{[%emt 00:00:19]} 3. Bb2 {[%clk 00:20:09]} Bc5 {[%clk 00:19:26]} {[%emt
00:00:32]} 4. e3 {[%clk 00:19:50]} {[%emt 00:00:24]} Qe7 {[%clk 00:17:45]}
{[%emt 00:01:46]} 5. Ne2 {[%clk 00:19:28]} {[%emt 00:00:27]} Nf6 {[%clk
00:16:34]} {[%emt 00:01:15]} 6. g3 {[%clk 00:19:05]} {[%emt 00:00:29]} d5
{[%clk 00:15:08]} {[%emt 00:01:31]} 7. cxd5 {[%clk 00:17:03]} {[%emt 00:02:07]}
Nxd5 {[%clk 00:15:07]} {[%emt 00:00:06]} 8. a3 {[%clk 00:15:57]} {[%emt
00:01:12]} Bg4 {[%clk 00:14:06]} {[%emt 00:01:03]} 9. Bg2 {[%clk 00:15:47]}
{[%emt 00:00:18]} O-O-O {[%clk 00:13:59]} {[%emt 00:00:12]} 10. b4 {[%clk
00:14:30]} {[%emt 00:01:23]} Bb6 {[%clk 00:12:50]} {[%emt 00:01:13]} 11. O-O
{[%clk 00:12:51]} {[%emt 00:01:44]} h5 {[%clk 00:12:07]} {[%emt 00:00:48]} 12.
h3 {[%clk 00:10:38]} {[%emt 00:02:18]} Be6 {[%clk 00:11:45]} {[%emt 00:00:24]}
13. b5 {[%clk 00:10:15]} {[%emt 00:00:32]} Nb8 {[%clk 00:10:35]} {[%emt
00:01:12]} 14. Bxe5 {[%clk 00:10:14]} {[%emt 00:00:09]} f6 {[%clk 00:09:29]}
{[%emt 00:01:11]} 15. Bb2 {[%clk 00:10:15]} {[%emt 00:00:04]} Qd7 {[%clk
00:09:23]} {[%emt 00:00:09]} 16. d4 {[%clk 00:09:42]} {[%emt 00:00:39]} Bxh3
{[%clk 00:09:05]} {[%emt 00:00:23]} 17. a4 {[%clk 00:08:39]} {[%emt 00:01:08]}
Bxg2 {[%clk 00:08:50]} {[%emt 00:00:19]} 18. Kxg2 {[%clk 00:08:43]} {[%emt
00:00:02]} Ba5 {[%clk 00:07:27]} {[%emt 00:01:28]} 19. Nbc3 {[%clk 00:07:30]}
{[%emt 00:01:19]} Bxc3 {[%clk 00:06:54]} {[%emt 00:00:38]} 20. Nxc3 {[%clk
00:07:28]} {[%emt 00:00:07]} h4 {[%clk 00:06:32]} {[%emt 00:00:26]} 21. Qf3
{[%clk 00:07:00]} {[%emt 00:00:34]} hxg3 {[%clk 00:06:14]} {[%emt 00:00:23]} 22.
Qxg3 {[%clk 00:07:01]} {[%emt 00:00:04]} Rh5 {[%clk 00:06:04]} {[%emt
00:00:14]} 23. f4 {[%clk 00:06:23]} {[%emt 00:00:44]} Rdh8 {[%clk 00:05:58]}
{[%emt 00:00:11]} 24. Rh1 {[%clk 00:06:10]} {[%emt 00:00:19]} Rxh1 {[%clk
00:05:12]} {[%emt 00:00:50]} 25. Rxh1 {[%clk 00:06:11]} {[%emt 00:00:04]} Rxh1
{[%clk 00:05:14]} {[%emt 00:00:03]} 26. Kxh1 {[%clk 00:06:14]} {[%emt
00:00:02]} Nxc3 {[%clk 00:04:57]} {[%emt 00:00:22]} 27. Bxc3 {[%clk 00:06:18]}
{[%emt 00:00:02]} c6 {[%clk 00:04:50]} {[%emt 00:00:12]} 28. Be1 {[%clk
00:03:34]} {[%emt 00:02:48]} cxb5 {[%clk 00:04:42]} {[%emt 00:00:13]} 29. axb5
{[%clk 00:03:36]} {[%emt 00:00:03]} Qxb5 {[%clk 00:04:22]} {[%emt 00:00:24]} 30.
Qg4+ {[%clk 00:03:14]} {[%emt 00:00:28]} Qd7 {[%clk 00:03:31]} {[%emt
00:00:55]} 31. Qg2 {[%clk 00:03:10]} {[%emt 00:00:09]} Qc6 {[%clk 00:02:33]}
{[%emt 00:01:04]} 32. Qxc6+ {[%clk 00:03:04]} {[%emt 00:00:11]} Nxc6 {[%clk
00:02:34]} {[%emt 00:00:04]} 33. Kg2 {[%clk 00:03:02]} {[%emt 00:00:07]} f5
{[%clk 00:02:25]} {[%emt 00:00:14]} 34. Kf2 {[%clk 00:02:59]} {[%emt 00:00:08]}
Kd7 {[%clk 00:02:20]} {[%emt 00:00:10]} 35. Ke2 {[%clk 00:03:03]} {[%emt
00:00:02]} Kd6 {[%clk 00:02:21]} {[%emt 00:00:03]} 36. Kd3 {[%clk 00:02:58]}
{[%emt 00:00:10]} Kd5 {[%clk 00:02:23]} {[%emt 00:00:03]} 37. Bd2 {[%clk
00:02:53]} {[%emt 00:00:11]} a6 {[%clk 00:02:08]} {[%emt 00:00:20]} 38. Bc3
{[%clk 00:02:43]} {[%emt 00:00:15]} b5 {[%clk 00:01:52]} {[%emt 00:00:22]} 39.
Bd2 {[%clk 00:02:39]} {[%emt 00:00:09]} b4 {[%clk 00:01:31]} {[%emt 00:00:25]}
40. Be1 {[%clk 00:02:29]} {[%emt 00:00:15]} a5 {[%clk 00:01:31]} {[%emt
00:00:05]} 41. Bd2 {[%clk 00:02:30]} {[%emt 00:00:04]} a4 {[%clk 00:01:12]}
{[%emt 00:00:24]} 42. Bc1 {[%clk 00:02:20]} {[%emt 00:00:15]} a3 {[%clk
00:01:00]} {[%emt 00:00:16]} 43. Kc2 {[%clk 00:02:00]} {[%emt 00:00:25]} Na5
{[%clk 00:00:35]} {[%emt 00:00:31]} 44. Bd2 {[%clk 00:01:17]} {[%emt 00:00:47]}
b3+ {[%clk 00:00:18]} {[%emt 00:00:23]} 45. Kb1 {[%clk 00:01:11]} {[%emt
00:00:09]} Nc4 {[%clk 00:00:15]} {[%emt 00:00:10]} 46. Bb4 {[%clk 00:00:52]}
{[%emt 00:00:23]} Ke4 {[%clk 00:00:18]} {[%emt 00:00:02]} 47. Bxa3 {[%clk
00:00:14]} {[%emt 00:00:43]} Nxa3+ {[%clk 00:00:22]} {[%emt 00:00:02]} 48. Kb2
{[%clk 00:00:15]} {[%emt 00:00:03]} Kxe3 {[%clk 00:00:14]} {[%emt 00:00:12]} 49.
d5 {[%clk 00:00:16]} {[%emt 00:00:05]} Nb5 {[%clk 00:00:18]} {[%emt 00:00:01]}
50. Kxb3 {[%clk 00:00:17]} {[%emt 00:00:04]} Kd4 {[%clk 00:00:21]} {[%emt
00:00:03]} 51. Kc2 {[%clk 00:00:16]} {[%emt 00:00:05]} Kxd5 {[%clk 00:00:24]}
{[%emt 00:00:02]} 52. Kd2 {[%emt 00:00:02]} Ke4 {[%clk 00:00:27]} 53. Ke2
{[%clk 00:00:24]} Kxf4 {[%clk 00:00:31]} {[%emt 00:00:01]} 54. Kf2 {[%clk
00:00:28]} g5 {[%clk 00:00:34]} {[%emt 00:00:03]} 55. Kg2 {[%clk 00:00:32]}
{[%emt 00:00:01]} g4 {[%clk 00:00:38]} {[%emt 00:00:02]} 56. Kf2 {[%clk
00:00:36]} Nd4 {[%clk 00:00:42]} {[%emt 00:00:02]} 57. Kg2 {[%clk 00:00:39]}
{[%emt 00:00:01]} g3 {[%clk 00:00:44]} {[%emt 00:00:03]} 58. Kf1 {[%clk
00:00:43]} Kf3 {[%clk 00:00:46]} {[%emt 00:00:02]} 59. Kg1 {[%clk 00:00:47]}
{[%emt 00:00:02]} g2 {[%clk 00:00:48]} {[%emt 00:00:02]} 60. Kh2 {[%clk
00:00:51]} {[%emt 00:00:01]} Kf2 {[%clk 00:00:51]} {[%emt 00:00:02]} 0-1

[Event "MČR juniorů a juniorek v rapid šachu 2023"]
[Site "Czech Republic"]
[Date "2023.09.23"]
[Round "6.28"]
[White "Jun, Robert"]
[Black "Beran, Jakub"]
[Result "1-0"]
[TimeControl "20 min + 5 sec per move"]
[WhiteFideId "23709510"]
[BlackFideId "23727071"]
[WhiteElo "1340"]
[BlackElo "1645"]

1. e4 {[%clk 00:20:09]} e5 {[%clk 00:20:08]} {[%emt 00:00:02]} 2. Nf3 {[%clk
00:20:13]} Nc6 {[%clk 00:20:12]} {[%emt 00:00:03]} 3. Bb5 {[%clk 00:20:17]} d6
{[%clk 00:20:14]} {[%emt 00:00:03]} 4. O-O {[%clk 00:20:15]} {[%emt 00:00:02]}
Nf6 {[%clk 00:20:00]} {[%emt 00:00:19]} 5. d4 {[%clk 00:20:24]} exd4 {[%clk
00:20:00]} {[%emt 00:00:06]} 6. Nxd4 {[%clk 00:20:27]} {[%emt 00:00:02]} Bd7
{[%clk 00:20:04]} 7. Nc3 {[%clk 00:20:25]} {[%emt 00:00:12]} Be7 {[%clk
00:20:13]} 8. Nxc6 {[%clk 00:20:26]} {[%emt 00:00:05]} Bxc6 {[%clk 00:20:16]}
{[%emt 00:00:02]} 9. Bxc6+ {[%clk 00:20:30]} {[%emt 00:00:01]} bxc6 {[%clk
00:20:20]} {[%emt 00:00:01]} 10. Bg5 {[%clk 00:20:30]} {[%emt 00:00:04]} O-O
{[%clk 00:20:22]} {[%emt 00:00:03]} 11. Re1 {[%clk 00:20:34]} h6 {[%clk
00:20:24]} {[%emt 00:00:04]} 12. Bh4 {[%clk 00:20:37]} {[%emt 00:00:01]} Nd7
{[%clk 00:20:26]} {[%emt 00:00:03]} 13. Bg3 {[%clk 00:20:32]} {[%emt 00:00:09]}
Bf6 {[%clk 00:20:28]} {[%emt 00:00:04]} 14. Qf3 {[%clk 00:20:26]} {[%emt
00:00:10]} Rb8 {[%clk 00:20:25]} {[%emt 00:00:08]} 15. b3 {[%clk 00:20:27]}
{[%emt 00:00:04]} Re8 {[%clk 00:20:18]} {[%emt 00:00:12]} 16. Rad1 {[%clk
00:20:31]} Ne5 {[%clk 00:20:16]} {[%emt 00:00:07]} 17. Bxe5 {[%clk 00:20:30]}
{[%emt 00:00:06]} Rxe5 {[%clk 00:20:20]} {[%emt 00:00:01]} 18. Ne2 {[%clk
00:20:22]} {[%emt 00:00:13]} Qe7 {[%clk 00:20:14]} {[%emt 00:00:06]} 19. Ng3
{[%clk 00:20:25]} {[%emt 00:00:05]} Re8 {[%clk 00:20:06]} {[%emt 00:00:12]} 20.
Qg4 {[%clk 00:19:54]} {[%emt 00:00:37]} Rg5 {[%clk 00:18:52]} {[%emt 00:01:19]}
21. Qf3 {[%clk 00:19:39]} {[%emt 00:00:20]} g6 {[%clk 00:18:32]} {[%emt
00:00:26]} 22. Qd3 {[%clk 00:18:20]} {[%emt 00:01:24]} Re5 {[%clk 00:17:55]}
{[%emt 00:00:39]} 23. Qa6 {[%clk 00:17:41]} {[%emt 00:00:47]} Bh4 {[%clk
00:17:23]} {[%emt 00:00:36]} 24. Qxa7 {[%clk 00:16:40]} {[%emt 00:01:07]} Bxg3
{[%clk 00:17:09]} {[%emt 00:00:19]} 25. hxg3 {[%clk 00:16:44]} {[%emt
00:00:01]} Rxe4 {[%clk 00:17:12]} {[%emt 00:00:02]} 26. Rxe4 {[%clk 00:16:47]}
{[%emt 00:00:01]} Qxe4 {[%clk 00:17:16]} 27. Qxc7 {[%clk 00:16:44]} {[%emt
00:00:09]} Qxc2 {[%clk 00:17:17]} {[%emt 00:00:04]} 28. Qxd6 {[%clk 00:16:37]}
{[%emt 00:00:12]} Ra8 {[%clk 00:16:34]} {[%emt 00:00:44]} 29. Rd2 {[%clk
00:16:25]} {[%emt 00:00:21]} Qc1+ {[%clk 00:15:58]} {[%emt 00:00:40]} 30. Kh2
{[%clk 00:16:17]} {[%emt 00:00:13]} Re8 {[%clk 00:15:09]} {[%emt 00:00:53]} 31.
Qf4 {[%clk 00:15:12]} {[%emt 00:01:06]} h5 {[%clk 00:13:02]} {[%emt 00:02:18]}
32. Re2 {[%clk 00:13:49]} {[%emt 00:01:28]} 1-0

[Event "MČR juniorů a juniorek v rapid šachu 2023"]
[Site "Czech Republic"]
[Date "2023.09.23"]
[Round "6.29"]
[White "Tvaroh, Vitezslav"]
[Black "Halama, Tomas"]
[Result "1/2-1/2"]
[TimeControl "20 min + 5 sec per move"]
[WhiteFideId "23704209"]
[BlackFideId "397970"]
[WhiteElo "1303"]
[BlackElo "1306"]

1. e4 {[%clk 00:20:07]} {[%emt 00:00:03]} c5 {[%clk 00:20:09]} 2. Nf3 {[%clk
00:20:08]} {[%emt 00:00:05]} Nc6 {[%clk 00:20:13]} {[%emt 00:00:02]} 3. d4
{[%clk 00:20:11]} cxd4 {[%clk 00:20:15]} {[%emt 00:00:03]} 4. Nxd4 {[%clk
00:20:14]} d6 {[%clk 00:20:20]} 5. Nc3 {[%clk 00:20:10]} {[%emt 00:00:11]} Bd7
{[%clk 00:20:22]} {[%emt 00:00:02]} 6. Be3 {[%clk 00:20:12]} {[%emt 00:00:03]}
Nf6 {[%clk 00:20:23]} {[%emt 00:00:04]} 7. Be2 {[%clk 00:20:10]} {[%emt
00:00:07]} e6 {[%clk 00:20:24]} {[%emt 00:00:04]} 8. Qd2 {[%clk 00:19:59]}
{[%emt 00:00:17]} Be7 {[%clk 00:20:20]} {[%emt 00:00:08]} 9. Nxc6 {[%clk
00:19:47]} {[%emt 00:00:17]} Bxc6 {[%clk 00:20:22]} {[%emt 00:00:02]} 10. f3
{[%clk 00:19:51]} {[%emt 00:00:02]} O-O {[%clk 00:20:15]} {[%emt 00:00:11]} 11.
g4 {[%clk 00:19:55]} d5 {[%clk 00:19:48]} {[%emt 00:00:34]} 12. e5 {[%clk
00:19:07]} {[%emt 00:00:53]} Nd7 {[%clk 00:19:38]} {[%emt 00:00:15]} 13. Bf4
{[%clk 00:17:33]} {[%emt 00:01:39]} Bh4+ {[%clk 00:18:45]} {[%emt 00:00:58]} 14.
Kf1 {[%clk 00:17:23]} {[%emt 00:00:15]} g5 {[%clk 00:17:18]} {[%emt 00:01:32]}
15. Bg3 {[%clk 00:16:57]} {[%emt 00:00:31]} Bxg3 {[%clk 00:14:21]} {[%emt
00:03:01]} 16. hxg3 {[%clk 00:17:00]} {[%emt 00:00:02]} Nxe5 {[%clk 00:14:23]}
{[%emt 00:00:02]} 17. Kg2 {[%clk 00:16:14]} {[%emt 00:00:52]} f6 {[%clk
00:13:43]} {[%emt 00:00:45]} 18. Qd4 {[%clk 00:14:15]} {[%emt 00:02:04]} Ng6
{[%clk 00:11:43]} {[%emt 00:02:05]} 19. Bd3 {[%clk 00:13:45]} {[%emt 00:00:35]}
Qe8 {[%clk 00:10:39]} {[%emt 00:01:10]} 20. Rh2 {[%clk 00:13:27]} {[%emt
00:00:23]} e5 {[%clk 00:10:20]} {[%emt 00:00:24]} 21. Qb4 {[%clk 00:12:29]}
{[%emt 00:01:03]} Kg7 {[%clk 00:07:08]} {[%emt 00:03:17]} 1/2-1/2

[Event "MČR juniorů a juniorek v rapid šachu 2023"]
[Site "Czech Republic"]
[Date "2023.09.23"]
[Round "6.30"]
[White "Pistej, Tomas"]
[Black "Macova, Marketa"]
[Result "1-0"]
[TimeControl "20 min + 5 sec per move"]
[WhiteFideId "23750740"]
[BlackFideId "23715588"]
[WhiteElo "1640"]
[BlackElo "1228"]

1. e4 {[%clk 00:20:08]} {[%emt 00:00:02]} e5 {[%clk 00:20:09]} {[%emt
00:00:02]} 2. Nc3 {[%clk 00:20:11]} {[%emt 00:00:02]} Nc6 {[%clk 00:20:12]}
{[%emt 00:00:02]} 3. Bc4 {[%clk 00:20:13]} {[%emt 00:00:03]} Bc5 {[%clk
00:20:15]} {[%emt 00:00:02]} 4. Qg4 {[%clk 00:20:14]} {[%emt 00:00:03]} g6
{[%clk 00:19:41]} {[%emt 00:00:40]} 5. Qf3 {[%clk 00:19:56]} {[%emt 00:00:23]}
Qf6 {[%clk 00:19:15]} {[%emt 00:00:30]} 6. Nd5 {[%clk 00:19:44]} {[%emt
00:00:18]} Qxf3 {[%clk 00:18:48]} {[%emt 00:00:32]} 7. Nxf3 {[%clk 00:19:46]}
{[%emt 00:00:03]} Bd6 {[%clk 00:18:28]} {[%emt 00:00:25]} 8. O-O {[%clk
00:19:23]} {[%emt 00:00:27]} Na5 {[%clk 00:17:57]} {[%emt 00:00:37]} 9. Ne3
{[%clk 00:18:56]} {[%emt 00:00:31]} Bc5 {[%clk 00:16:05]} {[%emt 00:01:57]} 10.
Nxe5 {[%clk 00:17:04]} {[%emt 00:01:58]} Bxe3 {[%clk 00:14:38]} {[%emt
00:01:32]} 11. Bxf7+ {[%clk 00:16:19]} {[%emt 00:00:49]} Ke7 {[%clk 00:14:19]}
{[%emt 00:00:24]} 12. fxe3 {[%clk 00:16:17]} {[%emt 00:00:08]} Nf6 {[%clk
00:13:31]} {[%emt 00:00:53]} 13. Bxg6 {[%clk 00:15:45]} {[%emt 00:00:37]} hxg6
{[%clk 00:12:12]} {[%emt 00:01:23]} 14. Nxg6+ {[%clk 00:15:47]} {[%emt
00:00:03]} Kf7 {[%clk 00:12:11]} {[%emt 00:00:06]} 15. Nxh8+ {[%clk 00:15:50]}
{[%emt 00:00:02]} Kg7 {[%clk 00:12:14]} {[%emt 00:00:02]} 16. e5 {[%clk
00:15:28]} {[%emt 00:00:27]} Nd5 {[%clk 00:10:59]} {[%emt 00:01:20]} 17. e4
{[%clk 00:15:04]} {[%emt 00:00:30]} Nb4 {[%clk 00:10:35]} {[%emt 00:00:28]} 18.
Nf7 {[%clk 00:13:41]} {[%emt 00:01:28]} Nxc2 {[%clk 00:10:08]} {[%emt
00:00:33]} 19. Rb1 {[%clk 00:13:40]} {[%emt 00:00:06]} b6 {[%clk 00:09:29]}
{[%emt 00:00:44]} 20. d3 {[%clk 00:13:09]} {[%emt 00:00:35]} Nb4 {[%clk
00:09:08]} {[%emt 00:00:26]} 21. Rf3 {[%clk 00:11:49]} {[%emt 00:01:24]} Nxd3
{[%clk 00:07:44]} {[%emt 00:01:31]} 22. Rxd3 {[%clk 00:11:28]} {[%emt
00:00:26]} Kxf7 {[%clk 00:07:48]} {[%emt 00:00:02]} 23. Bd2 {[%clk 00:11:06]}
{[%emt 00:00:26]} Nc4 {[%clk 00:07:39]} {[%emt 00:00:14]} 24. Bc3 {[%clk
00:10:49]} {[%emt 00:00:21]} Ke6 {[%clk 00:07:08]} {[%emt 00:00:37]} 25. b3
{[%clk 00:09:52]} {[%emt 00:01:01]} Nxe5 {[%clk 00:07:06]} {[%emt 00:00:08]} 26.
Bxe5 {[%clk 00:09:53]} {[%emt 00:00:04]} Kxe5 {[%clk 00:07:09]} {[%emt
00:00:02]} 27. Re1 {[%clk 00:09:43]} {[%emt 00:00:15]} d6 {[%clk 00:07:08]}
{[%emt 00:00:07]} 28. Rd5+ {[%clk 00:09:28]} {[%emt 00:00:19]} Ke6 {[%clk
00:07:09]} {[%emt 00:00:04]} 29. Rg5 {[%clk 00:09:21]} {[%emt 00:00:11]} Kf6
{[%clk 00:06:36]} {[%emt 00:00:40]} 30. Rg8 {[%clk 00:08:59]} {[%emt 00:00:27]}
Bb7 {[%clk 00:06:38]} {[%emt 00:00:03]} 31. Rxa8 {[%clk 00:09:00]} {[%emt
00:00:04]} Bxa8 {[%clk 00:06:41]} {[%emt 00:00:02]} 32. Kf2 {[%clk 00:08:51]}
{[%emt 00:00:14]} Ke5 {[%clk 00:06:41]} {[%emt 00:00:04]} 33. h4 {[%clk
00:08:04]} {[%emt 00:00:52]} Bxe4 {[%clk 00:06:35]} {[%emt 00:00:11]} 34. h5
{[%clk 00:08:01]} {[%emt 00:00:08]} Kf4 {[%clk 00:06:20]} {[%emt 00:00:20]} 35.
Rxe4+ {[%clk 00:07:56]} {[%emt 00:00:10]} Kxe4 {[%clk 00:06:23]} {[%emt
00:00:02]} 36. h6 {[%clk 00:07:59]} {[%emt 00:00:01]} Kf5 {[%clk 00:06:27]}
{[%emt 00:00:02]} 37. h7 {[%clk 00:08:02]} {[%emt 00:00:02]} Kg6 {[%clk
00:06:29]} {[%emt 00:00:02]} 38. h8=Q {[%clk 00:08:03]} {[%emt 00:00:04]} 1-0

[Event "MČR juniorů a juniorek v rapid šachu 2023"]
[Site "Czech Republic"]
[Date "2023.09.23"]
[Round "6.32"]
[White "Zadrapova, Gabriela"]
[Black "Krajicek, Matthew"]
[Result "0-1"]
[TimeControl "20 min + 5 sec per move"]
[WhiteFideId "23753056"]
[BlackFideId "23740175"]
[WhiteElo "1206"]
[BlackElo "1283"]

1. e4 {[%clk 00:20:07]} {[%emt 00:00:02]} d5 {[%clk 00:20:08]} {[%emt
00:00:02]} 2. exd5 {[%clk 00:20:06]} {[%emt 00:00:07]} Qxd5 {[%clk 00:20:11]}
{[%emt 00:00:02]} 3. Nc3 {[%clk 00:20:05]} {[%emt 00:00:05]} Qa5 {[%clk
00:20:14]} {[%emt 00:00:02]} 4. d4 {[%clk 00:19:48]} {[%emt 00:00:22]} Bf5
{[%clk 00:19:54]} {[%emt 00:00:25]} 5. Nf3 {[%clk 00:19:40]} {[%emt 00:00:13]}
Nd7 {[%clk 00:19:45]} {[%emt 00:00:15]} 6. Bf4 {[%clk 00:19:19]} {[%emt
00:00:26]} c6 {[%clk 00:19:25]} {[%emt 00:00:25]} 7. Be2 {[%clk 00:19:12]}
{[%emt 00:00:11]} e6 {[%clk 00:19:24]} {[%emt 00:00:07]} 8. O-O {[%clk
00:19:08]} {[%emt 00:00:09]} Ngf6 {[%clk 00:19:17]} {[%emt 00:00:11]} 9. Nh4
{[%clk 00:18:25]} {[%emt 00:00:47]} Bg6 {[%clk 00:18:35]} {[%emt 00:00:49]} 10.
Nxg6 {[%clk 00:18:24]} {[%emt 00:00:06]} hxg6 {[%clk 00:18:37]} {[%emt
00:00:03]} 11. Bd2 {[%clk 00:18:07]} {[%emt 00:00:21]} Qc7 {[%clk 00:18:23]}
{[%emt 00:00:19]} 12. Re1 {[%clk 00:17:30]} {[%emt 00:00:42]} Qxh2+ {[%clk
00:18:20]} {[%emt 00:00:09]} 13. Kf1 {[%clk 00:17:28]} {[%emt 00:00:08]} Qh1#
{[%clk 00:18:23]} {[%emt 00:00:02]} 0-1

[Event "MČR juniorů a juniorek v rapid šachu 2023"]
[Site "Czech Republic"]
[Date "2023.09.24"]
[Round "7.1"]
[White "Ocelak, Jakub"]
[Black "Bezdek, Tomas"]
[Result "1-0"]
[TimeControl "20 min + 5 sec per move"]
[WhiteFideId "23707933"]
[BlackFideId "23733551"]
[WhiteElo "2025"]
[BlackElo "1933"]

1. Nf3 {[%clk 00:20:07]} {[%emt 00:00:02]} d5 {[%clk 00:19:58]} {[%emt
00:00:13]} 2. d4 {[%clk 00:20:04]} {[%emt 00:00:07]} g6 {[%clk 00:19:36]}
{[%emt 00:00:28]} 3. c4 {[%clk 00:20:03]} {[%emt 00:00:05]} c6 {[%clk
00:19:39]} {[%emt 00:00:03]} 4. cxd5 {[%clk 00:19:54]} {[%emt 00:00:15]} cxd5
{[%clk 00:19:37]} {[%emt 00:00:07]} 5. Nc3 {[%clk 00:19:56]} {[%emt 00:00:02]}
Bg7 {[%clk 00:19:03]} {[%emt 00:00:40]} 6. Bf4 {[%clk 00:19:59]} {[%emt
00:00:02]} Nc6 {[%clk 00:18:54]} {[%emt 00:00:14]} 7. e3 {[%clk 00:20:01]}
{[%emt 00:00:02]} Nf6 {[%clk 00:18:22]} {[%emt 00:00:38]} 8. Bb5 {[%clk
00:17:31]} {[%emt 00:02:34]} O-O {[%clk 00:17:10]} {[%emt 00:01:18]} 9. O-O
{[%clk 00:17:32]} {[%emt 00:00:03]} Bg4 {[%clk 00:15:41]} {[%emt 00:01:34]} 10.
h3 {[%clk 00:17:25]} {[%emt 00:00:12]} Bxf3 {[%clk 00:14:40]} {[%emt 00:01:07]}
11. Qxf3 {[%clk 00:17:28]} {[%emt 00:00:02]} a6 {[%clk 00:12:03]} {[%emt
00:02:43]} 12. Bxc6 {[%clk 00:15:16]} {[%emt 00:02:16]} bxc6 {[%clk 00:12:05]}
{[%emt 00:00:03]} 13. Rfc1 {[%clk 00:15:09]} {[%emt 00:00:12]} Qa5 {[%clk
00:09:24]} {[%emt 00:02:47]} 14. a3 {[%clk 00:13:26]} {[%emt 00:01:49]} Qb6
{[%clk 00:07:54]} {[%emt 00:01:35]} 15. Qe2 {[%clk 00:12:15]} {[%emt 00:01:14]}
Nd7 {[%clk 00:06:35]} {[%emt 00:01:25]} 16. Rc2 {[%clk 00:09:50]} {[%emt
00:02:30]} e5 {[%clk 00:05:27]} {[%emt 00:01:13]} 17. dxe5 {[%clk 00:09:53]}
{[%emt 00:00:02]} Nxe5 {[%clk 00:05:30]} 18. Bxe5 {[%clk 00:09:06]} {[%emt
00:00:52]} Bxe5 {[%clk 00:05:26]} {[%emt 00:00:10]} 19. Na4 {[%clk 00:08:35]}
{[%emt 00:00:36]} Qb5 {[%clk 00:05:13]} {[%emt 00:00:18]} 20. Qxb5 {[%clk
00:07:45]} {[%emt 00:00:55]} cxb5 {[%clk 00:05:13]} {[%emt 00:00:05]} 21. Nc5
{[%clk 00:07:27]} {[%emt 00:00:22]} Rfc8 {[%clk 00:03:43]} {[%emt 00:01:35]} 22.
Rac1 {[%clk 00:06:54]} {[%emt 00:00:38]} d4 {[%clk 00:03:05]} {[%emt 00:00:44]}
23. Nd3 {[%clk 00:06:16]} {[%emt 00:00:43]} Rxc2 {[%clk 00:03:07]} {[%emt
00:00:03]} 24. Rxc2 {[%clk 00:06:19]} {[%emt 00:00:02]} Bg7 {[%clk 00:03:08]}
{[%emt 00:00:04]} 25. e4 {[%clk 00:06:21]} {[%emt 00:00:04]} Re8 {[%clk
00:01:49]} {[%emt 00:01:24]} 26. f3 {[%clk 00:05:30]} {[%emt 00:00:55]} Re6
{[%clk 00:01:31]} {[%emt 00:00:23]} 27. Rc8+ {[%clk 00:04:26]} {[%emt
00:01:09]} Bf8 {[%clk 00:01:35]} 28. Nf4 {[%clk 00:02:46]} {[%emt 00:01:45]}
Rd6 {[%clk 00:01:17]} {[%emt 00:00:23]} 29. Kf2 {[%clk 00:01:56]} {[%emt
00:00:56]} Kg7 {[%clk 00:00:56]} {[%emt 00:00:26]} 30. Ke2 {[%clk 00:01:57]}
{[%emt 00:00:04]} Rb6 {[%clk 00:00:23]} {[%emt 00:00:39]} 31. Nd5 {[%emt
00:00:05]} Rb7 32. Kd3 {[%clk 00:01:52]} {[%emt 00:00:09]} b4 {[%clk 00:00:29]}
{[%emt 00:00:04]} 33. a4 {[%clk 00:01:34]} {[%emt 00:00:22]} f5 {[%clk
00:00:20]} {[%emt 00:00:13]} 34. Kxd4 {[%clk 00:01:14]} {[%emt 00:00:26]} fxe4
{[%clk 00:00:24]} 35. fxe4 {[%clk 00:01:17]} {[%emt 00:00:02]} Rf7 {[%clk
00:00:28]} 36. Rc7 {[%clk 00:01:19]} {[%emt 00:00:02]} 1-0